[Event "Titled Tuesday Blitz May 23 Late 2023"]
[White "Tologon tegin, Semetei"]
[Black "Sieciechowicz, Marcin"]
[WhiteFideId "13800574"]
[BlackFideId "1130170"]
[WhiteElo "2247"]
[BlackElo "2302"]
[Result "0-1"]
[Round "02"]
[TimeControl "180+2"]
[Date "2023.05.23"]
[WhiteClock "0:00:00"]
[BlackClock "0:00:15"]

1. d4 {[%clk 0:01:39]}  d5 {[%clk 0:02:56]} 2. Nc3 {[%clk 0:01:40]}  Nf6 {[%clk 0:02:55]} 3. Bf4 {[%clk 0:01:37]}  e6 {[%clk 0:02:55]} 4. Nb5 {[%clk 0:01:36]}  Na6 {[%clk 0:02:55]} 5. e3 {[%clk 0:01:36]}  Be7 {[%clk 0:02:41]} 6. a3 {[%clk 0:01:33]}  O-O {[%clk 0:02:38]} 7. Nf3 {[%clk 0:01:31]}  c6 {[%clk 0:02:38]} 8. Nc3 {[%clk 0:01:29]}  c5 {[%clk 0:02:35]} 9. Bd3 {[%clk 0:01:23]}  c4 {[%clk 0:02:19]} 10. Be2 {[%clk 0:01:05]}  Bd7 {[%clk 0:02:20]} 11. O-O {[%clk 0:00:59]}  b5 {[%clk 0:02:15]} 12. Ne5 {[%clk 0:00:59]}  Be8 {[%clk 0:02:14]} 13. Bf3 {[%clk 0:00:58]}  Nc7 {[%clk 0:02:01]} 14. e4 {[%clk 0:00:58]}  a5 {[%clk 0:02:00]} 15. exd5 {[%clk 0:00:58]}  exd5 {[%clk 0:02:00]} 16. Re1 {[%clk 0:00:58]}  Ne6 {[%clk 0:01:52]} 17. Bg3 {[%clk 0:00:56]}  Ng5 {[%clk 0:01:51]} 18. Bh4 {[%clk 0:00:53]}  h6 {[%clk 0:01:07]} 19. Ng4 {[%clk 0:00:35]}  Nxg4 {[%clk 0:00:50]} 20. Bxg4 {[%clk 0:00:36]}  Bc6 {[%clk 0:00:44]} 21. Bg3 {[%clk 0:00:22]}  b4 {[%clk 0:00:40]} 22. axb4 {[%clk 0:00:22]}  Bxb4 {[%clk 0:00:40]} 23. Qd2 {[%clk 0:00:17]}  Ne4 {[%clk 0:00:40]} 24. Qe3 {[%clk 0:00:17]}  f5 {[%clk 0:00:37]} 25. Nxe4 {[%clk 0:00:16]}  Bxe1 {[%clk 0:00:31]} 26. Nc5 {[%clk 0:00:14]}  Re8 {[%clk 0:00:21]} 27. Qf4 {[%clk 0:00:08]}  fxg4 {[%clk 0:00:18]} 28. Qxg4 {[%clk 0:00:07]}  Qf6 {[%clk 0:00:15]} 29. Be5 {[%clk 0:00:00]}  Qxf2+ {[%clk 0:00:15]} 0-1


[Site "https://www.chess.com"]

[Event "Titled Tuesday Blitz May 23 Late 2023"]
[White "Riehle, Marco"]
[Black "Fiorito, Francisco"]
[WhiteFideId "12904392"]
[BlackFideId "180165"]
[WhiteElo "2462"]
[BlackElo "2341"]
[Result "1-0"]
[Round "02"]
[TimeControl "180+2"]
[Date "2023.05.23"]
[WhiteClock "0:00:05"]
[BlackClock "0:00:04"]

1. e4 {[%clk 0:02:58]}  c5 {[%clk 0:02:59]} 2. a3 {[%clk 0:02:58]}  Nc6 {[%clk 0:02:59]} 3. b4 {[%clk 0:02:58]}  cxb4 {[%clk 0:02:56]} 4. axb4 {[%clk 0:02:59]}  Nxb4 {[%clk 0:02:51]} 5. d4 {[%clk 0:02:57]}  d5 {[%clk 0:02:28]} 6. c3 {[%clk 0:02:57]}  Nc6 {[%clk 0:02:28]} 7. exd5 {[%clk 0:02:57]}  Qxd5 {[%clk 0:02:29]} 8. Na3 {[%clk 0:02:58]}  Qd8 {[%clk 0:02:15]} 9. d5 {[%clk 0:02:51]}  Ne5 {[%clk 0:02:14]} 10. Bf4 {[%clk 0:02:50]}  Ng6 {[%clk 0:02:12]} 11. Bg3 {[%clk 0:02:50]}  e5 {[%clk 0:02:06]} 12. Nb5 {[%clk 0:02:41]}  Bd6 {[%clk 0:01:49]} 13. Qa4 {[%clk 0:02:31]}  Kf8 {[%clk 0:01:44]} 14. Nf3 {[%clk 0:02:27]}  N8e7 {[%clk 0:01:34]} 15. Bc4 {[%clk 0:02:22]}  Bd7 {[%clk 0:01:25]} 16. Qb3 {[%clk 0:02:17]}  Bxb5 {[%clk 0:01:26]} 17. Qxb5 {[%clk 0:02:16]}  Qc7 {[%clk 0:01:24]} 18. O-O {[%clk 0:02:15]}  a6 {[%clk 0:01:24]} 19. Qb3 {[%clk 0:02:14]}  Rc8 {[%clk 0:01:19]} 20. Be2 {[%clk 0:02:10]}  Nf5 {[%clk 0:01:17]} 21. c4 {[%clk 0:02:02]}  Nxg3 {[%clk 0:01:13]} 22. hxg3 {[%clk 0:02:03]}  Ke7 {[%clk 0:01:13]} 23. Rfe1 {[%clk 0:01:50]}  Nf8 {[%clk 0:00:52]} 24. Bd3 {[%clk 0:01:48]}  Nd7 {[%clk 0:00:52]} 25. Nd4 {[%clk 0:01:44]}  g6 {[%clk 0:00:46]} 26. Qb2 {[%clk 0:01:40]}  Rhe8 {[%clk 0:00:41]} 27. Nf3 {[%clk 0:01:36]}  Kf8 {[%clk 0:00:36]} 28. Qd2 {[%clk 0:01:32]}  Kg7 {[%clk 0:00:33]} 29. Nh4 {[%clk 0:01:28]}  f6 {[%clk 0:00:23]} 30. Qc2 {[%clk 0:01:20]}  Nf8 {[%clk 0:00:22]} 31. Re4 {[%clk 0:01:15]}  Qd7 {[%clk 0:00:18]} 32. Rb1 {[%clk 0:01:12]}  f5 {[%clk 0:00:17]} 33. Ree1 {[%clk 0:01:11]}  e4 {[%clk 0:00:17]} 34. Bf1 {[%clk 0:01:09]}  Be5 {[%clk 0:00:17]} 35. f4 {[%clk 0:01:05]}  Bd4+ {[%clk 0:00:16]} 36. Kh2 {[%clk 0:01:05]}  Qc7 {[%clk 0:00:17]} 37. Qb3 {[%clk 0:00:55]}  b6 {[%clk 0:00:15]} 38. Red1 {[%clk 0:00:55]}  Bc5 {[%clk 0:00:14]} 39. Ra1 {[%clk 0:00:44]}  a5 {[%clk 0:00:13]} 40. Be2 {[%clk 0:00:45]}  Nd7 {[%clk 0:00:13]} 41. Qc3+ {[%clk 0:00:38]}  Nf6 {[%clk 0:00:12]} 42. Rdb1 {[%clk 0:00:38]}  Qd6 {[%clk 0:00:12]} 43. Bd1 {[%clk 0:00:38]}  Re7 {[%clk 0:00:13]} 44. Ba4 {[%clk 0:00:38]}  Rec7 {[%clk 0:00:13]} 45. Bc6 {[%clk 0:00:36]}  Kf7 {[%clk 0:00:13]} 46. Rf1 {[%clk 0:00:33]}  Ng4+ {[%clk 0:00:13]} 47. Kh1 {[%clk 0:00:33]}  Qe7 {[%clk 0:00:10]} 48. Ra2 {[%clk 0:00:27]}  Qf6 {[%clk 0:00:10]} 49. Qd2 {[%clk 0:00:21]}  Ke7 {[%clk 0:00:10]} 50. Rb2 {[%clk 0:00:20]}  Kd6 {[%clk 0:00:10]} 51. Rbb1 {[%clk 0:00:18]}  Qd4 {[%clk 0:00:11]} 52. Qxd4 {[%clk 0:00:18]}  Bxd4 {[%clk 0:00:11]} 53. Rbc1 {[%clk 0:00:17]}  Kc5 {[%clk 0:00:11]} 54. Bb5 {[%clk 0:00:17]}  Bf6 {[%clk 0:00:11]} 55. Rcd1 {[%clk 0:00:16]}  e3 {[%clk 0:00:11]} 56. Rde1 {[%clk 0:00:15]}  Kd6 {[%clk 0:00:11]} 57. Nf3 {[%clk 0:00:14]}  Bc3 {[%clk 0:00:12]} 58. Re2 {[%clk 0:00:13]}  Re7 {[%clk 0:00:11]} 59. Rc1 {[%clk 0:00:12]}  Bb4 {[%clk 0:00:11]} 60. Kg1 {[%clk 0:00:12]}  Bc5 {[%clk 0:00:11]} 61. Kf1 {[%clk 0:00:12]}  Re4 {[%clk 0:00:12]} 62. Kg1 {[%clk 0:00:08]}  h6 {[%clk 0:00:12]} 63. Nh2 {[%clk 0:00:09]}  Nf2 {[%clk 0:00:12]} 64. Nf3 {[%clk 0:00:09]}  Nd3 {[%clk 0:00:12]} 65. Rd1 {[%clk 0:00:09]}  Nb4 {[%clk 0:00:12]} 66. Kh2 {[%clk 0:00:09]}  Rg8 {[%clk 0:00:11]} 67. Kh3 {[%clk 0:00:09]}  g5 {[%clk 0:00:12]} 68. fxg5 {[%clk 0:00:09]}  hxg5 {[%clk 0:00:13]} 69. Kh2 {[%clk 0:00:09]}  Rh8+ {[%clk 0:00:13]} 70. Kg1 {[%clk 0:00:09]}  Rg8 {[%clk 0:00:14]} 71. Kh2 {[%clk 0:00:09]}  f4 {[%clk 0:00:15]} 72. g4 {[%clk 0:00:09]}  Rg7 {[%clk 0:00:12]} 73. Rh1 {[%clk 0:00:08]}  Rh7+ {[%clk 0:00:12]} 74. Kg1 {[%clk 0:00:08]}  Rxh1+ {[%clk 0:00:10]} 75. Kxh1 {[%clk 0:00:08]}  Re5 {[%clk 0:00:10]} 76. Nxe5 {[%clk 0:00:08]}  Kxe5 {[%clk 0:00:11]} 77. Kh2 {[%clk 0:00:09]}  Bd6 {[%clk 0:00:11]} 78. Kg1 {[%clk 0:00:07]}  Nd3 {[%clk 0:00:12]} 79. Kf1 {[%clk 0:00:07]}  Kd4 {[%clk 0:00:12]} 80. Ra2 {[%clk 0:00:07]}  Nc5 {[%clk 0:00:12]} 81. Ke2 {[%clk 0:00:07]}  Kc3 {[%clk 0:00:13]} 82. Ra1 {[%clk 0:00:07]}  Ne4 {[%clk 0:00:13]} 83. Rc1+ {[%clk 0:00:07]}  Kb2 {[%clk 0:00:13]} 84. Re1 {[%clk 0:00:07]}  Bb4 {[%clk 0:00:13]} 85. Rg1 {[%clk 0:00:06]}  Kc2 {[%clk 0:00:11]} 86. Kf3 {[%clk 0:00:06]}  Kd3 {[%clk 0:00:08]} 87. c5+ {[%clk 0:00:06]}  Kd4 {[%clk 0:00:08]} 88. cxb6 {[%clk 0:00:06]}  Nd2+ {[%clk 0:00:06]} 89. Ke2 {[%clk 0:00:06]}  Kxd5 {[%clk 0:00:07]} 90. b7 {[%clk 0:00:07]}  Bd6 {[%clk 0:00:07]} 91. Rh1 {[%clk 0:00:07]}  Kc5 {[%clk 0:00:07]} 92. Bd3 {[%clk 0:00:07]}  Kb6 {[%clk 0:00:07]} 93. Rh6 {[%clk 0:00:06]}  Kxb7 {[%clk 0:00:04]} 94. Rxd6 {[%clk 0:00:07]}  a4 {[%clk 0:00:04]} 95. Ra6 {[%clk 0:00:07]}  Nb3 {[%clk 0:00:04]} 96. Bc4 {[%clk 0:00:03]}  Nc5 {[%clk 0:00:04]} 97. Ra5 {[%clk 0:00:03]}  Kb6 {[%clk 0:00:05]} 98. Rb5+ {[%clk 0:00:04]}  Kc6 {[%clk 0:00:06]} 99. Rb1 {[%clk 0:00:04]}  Ne4 {[%clk 0:00:07]} 100. Rc1 {[%clk 0:00:04]}  Ng3+ {[%clk 0:00:06]} 101. Kd3 {[%clk 0:00:04]}  Kc5 {[%clk 0:00:07]} 102. Bf7+ {[%clk 0:00:04]}  Kb4 {[%clk 0:00:07]} 103. Rb1+ {[%clk 0:00:04]}  Ka3 {[%clk 0:00:08]} 104. Kc3 {[%clk 0:00:03]}  Ne2+ {[%clk 0:00:06]} 105. Kd3 {[%clk 0:00:04]}  Ng3 {[%clk 0:00:07]} 106. Kc2 {[%clk 0:00:04]}  Ne2 {[%clk 0:00:05]} 107. Bc4 {[%clk 0:00:02]}  Nd4+ {[%clk 0:00:05]} 108. Kd3 {[%clk 0:00:02]}  Nc6 {[%clk 0:00:05]} 109. Rc1 {[%clk 0:00:02]}  Ne5+ {[%clk 0:00:05]} 110. Ke2 {[%clk 0:00:03]}  Nd7 {[%clk 0:00:05]} 111. Be6 {[%clk 0:00:04]}  Ne5 {[%clk 0:00:05]} 112. Rc3+ {[%clk 0:00:04]}  Kb2 {[%clk 0:00:04]} 113. Rc5 {[%clk 0:00:04]}  Ng6 {[%clk 0:00:02]} 114. Rxg5 {[%clk 0:00:04]}  Nh4 {[%clk 0:00:03]} 115. Rb5+ {[%clk 0:00:04]}  Kc3 {[%clk 0:00:03]} 116. g5 {[%clk 0:00:05]}  Nxg2 {[%clk 0:00:03]} 117. g6 {[%clk 0:00:06]}  Nh4 {[%clk 0:00:03]} 118. g7 {[%clk 0:00:06]}  Kd4 {[%clk 0:00:04]} 119. g8=Q {[%clk 0:00:05]}  f3+ {[%clk 0:00:05]} 120. Kd1 {[%clk 0:00:05]}  e2+ {[%clk 0:00:05]} 121. Kd2 {[%clk 0:00:05]}  Ng2 {[%clk 0:00:05]} 122. Qg4+ {[%clk 0:00:04]}  Nf4 {[%clk 0:00:04]} 123. Qxf4# {[%clk 0:00:05]} 1-0


[Site "https://www.chess.com"]

[Event "Titled Tuesday Blitz May 23 Late 2023"]
[White "Taboas Rodriguez, Daniel"]
[Black "Yanchenko, Roman"]
[WhiteFideId "2208466"]
[BlackFideId "4137329"]
[WhiteElo "2365"]
[BlackElo "2491"]
[Result "1-0"]
[Round "02"]
[TimeControl "180+2"]
[Date "2023.05.23"]
[WhiteClock "0:01:19"]
[BlackClock "0:01:04"]

1. d4 {[%clk 0:02:59]}  d5 {[%clk 0:03:00]} 2. Nf3 {[%clk 0:02:59]}  Nf6 {[%clk 0:03:00]} 3. c4 {[%clk 0:02:58]}  c6 {[%clk 0:03:00]} 4. cxd5 {[%clk 0:02:57]}  cxd5 {[%clk 0:03:01]} 5. Nc3 {[%clk 0:02:58]}  Nc6 {[%clk 0:03:01]} 6. Bf4 {[%clk 0:02:58]}  e6 {[%clk 0:03:01]} 7. e3 {[%clk 0:02:57]}  Bd6 {[%clk 0:03:01]} 8. Bg3 {[%clk 0:02:57]}  O-O {[%clk 0:03:01]} 9. Bd3 {[%clk 0:02:57]}  h6 {[%clk 0:03:01]} 10. Rc1 {[%clk 0:02:53]}  Bxg3 {[%clk 0:02:57]} 11. hxg3 {[%clk 0:02:53]}  Bd7 {[%clk 0:02:57]} 12. Ne5 {[%clk 0:02:52]}  Nxe5 {[%clk 0:02:55]} 13. dxe5 {[%clk 0:02:53]}  Ne8 {[%clk 0:02:55]} 14. Qg4 {[%clk 0:02:39]}  f5 {[%clk 0:02:52]} 15. exf6 {[%clk 0:02:36]}  Qxf6 {[%clk 0:02:52]} 16. O-O {[%clk 0:02:33]}  Nd6 {[%clk 0:02:50]} 17. Nxd5 {[%clk 0:02:25]}  exd5 {[%clk 0:02:13]} 18. Qxd7 {[%clk 0:02:23]}  Rf7 {[%clk 0:02:14]} 19. Qg4 {[%clk 0:02:21]}  Raf8 {[%clk 0:02:10]} 20. Qg6 {[%clk 0:02:09]}  Qxg6 {[%clk 0:02:03]} 21. Bxg6 {[%clk 0:02:09]}  Rf6 {[%clk 0:02:04]} 22. Bd3 {[%clk 0:02:10]}  R8f7 {[%clk 0:02:03]} 23. Rc5 {[%clk 0:02:09]}  b6 {[%clk 0:01:35]} 24. Rxd5 {[%clk 0:02:09]}  Rc7 {[%clk 0:01:35]} 25. e4 {[%clk 0:02:00]}  Nb7 {[%clk 0:01:32]} 26. e5 {[%clk 0:01:57]}  Rfc6 {[%clk 0:01:32]} 27. b3 {[%clk 0:01:53]}  Kf8 {[%clk 0:01:29]} 28. f4 {[%clk 0:01:51]}  Rc3 {[%clk 0:01:28]} 29. g4 {[%clk 0:01:50]}  Nc5 {[%clk 0:01:28]} 30. Bg6 {[%clk 0:01:46]}  Ke7 {[%clk 0:01:22]} 31. f5 {[%clk 0:01:45]}  Rc6 {[%clk 0:01:22]} 32. Rfd1 {[%clk 0:01:25]}  Rc7 {[%clk 0:01:04]} 33. Rd8 {[%clk 0:01:23]}  Nd7 {[%clk 0:01:04]} 34. Re8# {[%clk 0:01:19]} 1-0


[Site "https://www.chess.com"]

[Event "Titled Tuesday Blitz May 23 Late 2023"]
[White "Ezat, Mohamed"]
[Black "Schmakel, Sam"]
[WhiteFideId "10600906"]
[BlackFideId "2039311"]
[WhiteElo "2386"]
[BlackElo "2356"]
[Result "0-1"]
[Round "02"]
[TimeControl "180+2"]
[Date "2023.05.23"]
[WhiteClock "0:00:00"]
[BlackClock "0:00:08"]

1. d4 {[%clk 0:03:00]}  d5 {[%clk 0:02:59]} 2. c4 {[%clk 0:03:00]}  e6 {[%clk 0:03:00]} 3. Nc3 {[%clk 0:03:00]}  Nf6 {[%clk 0:02:59]} 4. cxd5 {[%clk 0:03:00]}  exd5 {[%clk 0:03:00]} 5. Bg5 {[%clk 0:02:59]}  c6 {[%clk 0:03:01]} 6. Qc2 {[%clk 0:02:59]}  Be7 {[%clk 0:03:00]} 7. e3 {[%clk 0:02:59]}  O-O {[%clk 0:03:00]} 8. Bd3 {[%clk 0:02:59]}  h6 {[%clk 0:03:01]} 9. Bf4 {[%clk 0:02:58]}  a5 {[%clk 0:02:54]} 10. Nge2 {[%clk 0:02:55]}  Na6 {[%clk 0:02:54]} 11. a3 {[%clk 0:02:55]}  Nc7 {[%clk 0:02:48]} 12. O-O {[%clk 0:02:51]}  Ne6 {[%clk 0:02:39]} 13. Bg3 {[%clk 0:02:50]}  b5 {[%clk 0:02:39]} 14. Nf4 {[%clk 0:02:44]}  Nxf4 {[%clk 0:02:30]} 15. Bxf4 {[%clk 0:02:41]}  Be6 {[%clk 0:02:27]} 16. Ne2 {[%clk 0:02:29]}  Qb6 {[%clk 0:02:24]} 17. Ng3 {[%clk 0:02:25]}  c5 {[%clk 0:02:13]} 18. dxc5 {[%clk 0:02:23]}  Bxc5 {[%clk 0:02:14]} 19. Nf5 {[%clk 0:02:06]}  Rac8 {[%clk 0:02:13]} 20. Qe2 {[%clk 0:02:03]}  b4 {[%clk 0:01:48]} 21. axb4 {[%clk 0:02:01]}  Bxb4 {[%clk 0:01:48]} 22. Be5 {[%clk 0:01:55]}  Qd8 {[%clk 0:01:47]} 23. Nd4 {[%clk 0:01:49]}  Nd7 {[%clk 0:01:41]} 24. Bg3 {[%clk 0:01:41]}  Nc5 {[%clk 0:01:38]} 25. Bc2 {[%clk 0:01:35]}  Qf6 {[%clk 0:01:27]} 26. Rfd1 {[%clk 0:01:33]}  Bd7 {[%clk 0:01:19]} 27. Qh5 {[%clk 0:01:30]}  Rfd8 {[%clk 0:01:16]} 28. Bh4 {[%clk 0:01:27]}  g5 {[%clk 0:01:16]} 29. Bg3 {[%clk 0:01:27]}  Ne4 {[%clk 0:01:10]} 30. Bb3 {[%clk 0:01:02]}  Be6 {[%clk 0:00:57]} 31. Rac1 {[%clk 0:00:52]}  Bd2 {[%clk 0:00:34]} 32. Rxc8 {[%clk 0:00:48]}  Rxc8 {[%clk 0:00:35]} 33. Qe2 {[%clk 0:00:31]}  Bb4 {[%clk 0:00:34]} 34. Qa6 {[%clk 0:00:29]}  Nc5 {[%clk 0:00:18]} 35. Qb5 {[%clk 0:00:28]}  Nxb3 {[%clk 0:00:17]} 36. Nxb3 {[%clk 0:00:24]}  Qxb2 {[%clk 0:00:17]} 37. Nd4 {[%clk 0:00:21]}  Rc1 {[%clk 0:00:14]} 38. Qf1 {[%clk 0:00:17]}  Rxd1 {[%clk 0:00:13]} 39. Qxd1 {[%clk 0:00:17]}  a4 {[%clk 0:00:14]} 40. Be5 {[%clk 0:00:07]}  a3 {[%clk 0:00:10]} 41. Nxe6 {[%clk 0:00:05]}  Qxe5 {[%clk 0:00:10]} 42. Nd4 {[%clk 0:00:00]}  Qc7 {[%clk 0:00:08]} 0-1


[Site "https://www.chess.com"]

[Event "Titled Tuesday Blitz May 23 Late 2023"]
[White "Csonka, Balazs"]
[Black "Bruedigam, Martin"]
[WhiteFideId "742910"]
[BlackFideId "24608033"]
[WhiteElo "2404"]
[BlackElo "2331"]
[Result "1/2-1/2"]
[Round "02"]
[TimeControl "180+2"]
[Date "2023.05.23"]
[WhiteClock "0:00:02"]
[BlackClock "0:00:15"]

1. e4 {[%clk 0:03:00]}  c6 {[%clk 0:03:00]} 2. d4 {[%clk 0:02:57]}  d5 {[%clk 0:03:00]} 3. exd5 {[%clk 0:02:57]}  cxd5 {[%clk 0:03:00]} 4. c4 {[%clk 0:02:58]}  Nf6 {[%clk 0:03:00]} 5. Nc3 {[%clk 0:02:57]}  e6 {[%clk 0:03:00]} 6. Nf3 {[%clk 0:02:57]}  Bb4 {[%clk 0:03:00]} 7. Bd3 {[%clk 0:02:53]}  dxc4 {[%clk 0:02:59]} 8. Bxc4 {[%clk 0:02:54]}  O-O {[%clk 0:02:56]} 9. O-O {[%clk 0:02:55]}  Nc6 {[%clk 0:02:53]} 10. Bg5 {[%clk 0:02:50]}  Be7 {[%clk 0:02:53]} 11. a3 {[%clk 0:02:14]}  Nd5 {[%clk 0:02:48]} 12. Bxd5 {[%clk 0:02:08]}  Bxg5 {[%clk 0:02:33]} 13. Bxc6 {[%clk 0:02:07]}  bxc6 {[%clk 0:02:34]} 14. Qa4 {[%clk 0:01:43]}  Bf6 {[%clk 0:02:11]} 15. Rac1 {[%clk 0:01:37]}  Qb6 {[%clk 0:02:08]} 16. Ne4 {[%clk 0:01:22]}  Be7 {[%clk 0:01:58]} 17. b4 {[%clk 0:01:16]}  Ba6 {[%clk 0:01:22]} 18. Rxc6 {[%clk 0:00:33]}  Bxf1 {[%clk 0:01:21]} 19. Rxb6 {[%clk 0:00:33]}  axb6 {[%clk 0:01:22]} 20. Qd7 {[%clk 0:00:31]}  Bd3 {[%clk 0:01:23]} 21. Qxe7 {[%clk 0:00:28]}  Bxe4 {[%clk 0:01:21]} 22. b5 {[%clk 0:00:25]}  Rfc8 {[%clk 0:01:13]} 23. h4 {[%clk 0:00:20]}  Bxf3 {[%clk 0:01:04]} 24. gxf3 {[%clk 0:00:20]}  h5 {[%clk 0:00:34]} 25. Kg2 {[%clk 0:00:18]}  g6 {[%clk 0:00:16]} 26. Qd6 {[%clk 0:00:14]}  Rab8 {[%clk 0:00:15]} 27. Kg3 {[%clk 0:00:12]}  Rd8 {[%clk 0:00:15]} 28. Qc7 {[%clk 0:00:11]}  Rdc8 {[%clk 0:00:15]} 29. Qd6 {[%clk 0:00:10]}  Rd8 {[%clk 0:00:16]} 30. Qc7 {[%clk 0:00:03]}  Rdc8 {[%clk 0:00:15]} 31. Qd6 {[%clk 0:00:02]} 1/2-1/2


[Site "https://www.chess.com"]

[Event "Titled Tuesday Blitz May 23 Late 2023"]
[White "Jaracz, Pawel"]
[Black "Meunier-Pion, Jean"]
[WhiteFideId "1102222"]
[BlackFideId "20685327"]
[WhiteElo "2438"]
[BlackElo "2124"]
[Result "1-0"]
[Round "02"]
[TimeControl "180+2"]
[Date "2023.05.23"]
[WhiteClock "0:00:12"]
[BlackClock "0:00:00"]

1. d4 {[%clk 0:02:55]}  Nf6 {[%clk 0:02:59]} 2. c4 {[%clk 0:02:55]}  e6 {[%clk 0:02:59]} 3. g3 {[%clk 0:02:53]}  d5 {[%clk 0:02:58]} 4. Bg2 {[%clk 0:02:52]}  Be7 {[%clk 0:02:56]} 5. Nf3 {[%clk 0:02:52]}  O-O {[%clk 0:02:56]} 6. Qc2 {[%clk 0:02:52]}  c6 {[%clk 0:02:50]} 7. O-O {[%clk 0:02:51]}  Nbd7 {[%clk 0:02:51]} 8. b3 {[%clk 0:02:50]}  b6 {[%clk 0:02:51]} 9. Bb2 {[%clk 0:02:50]}  Bb7 {[%clk 0:02:50]} 10. Ne5 {[%clk 0:02:41]}  Rc8 {[%clk 0:02:44]} 11. Nc3 {[%clk 0:02:36]}  Qc7 {[%clk 0:02:42]} 12. Rad1 {[%clk 0:02:32]}  Rfd8 {[%clk 0:02:18]} 13. e4 {[%clk 0:02:18]}  Qb8 {[%clk 0:02:05]} 14. Qe2 {[%clk 0:02:07]}  dxc4 {[%clk 0:02:01]} 15. Nxc4 {[%clk 0:01:53]}  b5 {[%clk 0:01:20]} 16. Ne3 {[%clk 0:01:27]}  e5 {[%clk 0:01:07]} 17. Nf5 {[%clk 0:01:25]}  Bf8 {[%clk 0:01:07]} 18. dxe5 {[%clk 0:01:22]}  Nxe5 {[%clk 0:01:07]} 19. f4 {[%clk 0:01:20]}  Rxd1 {[%clk 0:00:53]} 20. Nxd1 {[%clk 0:01:20]}  Ned7 {[%clk 0:00:37]} 21. e5 {[%clk 0:01:19]}  Nd5 {[%clk 0:00:32]} 22. e6 {[%clk 0:01:15]}  N7f6 {[%clk 0:00:33]} 23. e7 {[%clk 0:01:11]}  Re8 {[%clk 0:00:20]} 24. exf8=Q+ {[%clk 0:01:10]}  Kxf8 {[%clk 0:00:21]} 25. Qd3 {[%clk 0:01:01]}  a5 {[%clk 0:00:20]} 26. Bd4 {[%clk 0:00:58]}  Qc7 {[%clk 0:00:20]} 27. Bc5+ {[%clk 0:00:57]}  Kg8 {[%clk 0:00:20]} 28. Nd6 {[%clk 0:00:57]}  Rd8 {[%clk 0:00:19]} 29. Nxb7 {[%clk 0:00:57]}  Qxb7 {[%clk 0:00:20]} 30. Ne3 {[%clk 0:00:52]}  Qc7 {[%clk 0:00:17]} 31. Rd1 {[%clk 0:00:50]}  h6 {[%clk 0:00:15]} 32. h3 {[%clk 0:00:43]}  b4 {[%clk 0:00:14]} 33. Kh2 {[%clk 0:00:42]}  Re8 {[%clk 0:00:14]} 34. Nxd5 {[%clk 0:00:42]}  Nxd5 {[%clk 0:00:14]} 35. Bxd5 {[%clk 0:00:34]}  cxd5 {[%clk 0:00:14]} 36. Bd4 {[%clk 0:00:35]}  Qe7 {[%clk 0:00:12]} 37. Rd2 {[%clk 0:00:34]}  Qe1 {[%clk 0:00:10]} 38. Bf2 {[%clk 0:00:34]}  Qc1 {[%clk 0:00:06]} 39. Qxd5 {[%clk 0:00:33]}  Qa1 {[%clk 0:00:04]} 40. Qd3 {[%clk 0:00:15]}  Rc8 {[%clk 0:00:04]} 41. Re2 {[%clk 0:00:12]}  g6 {[%clk 0:00:02]} 42. Bd4 {[%clk 0:00:12]}  Qc1 {[%clk 0:00:02]} 43. Qe3 {[%clk 0:00:12]}  Qc6 {[%clk 0:00:00]} 44. Qe5 {[%clk 0:00:12]} 1-0


[Site "https://www.chess.com"]

[Event "Titled Tuesday Blitz May 23 Late 2023"]
[White "Volkov, Maksim"]
[Black "cristianserban1"]
[WhiteFideId "54123070"]
[WhiteElo "2297"]
[BlackElo "2476"]
[Result "0-1"]
[Round "02"]
[TimeControl "180+2"]
[Date "2023.05.23"]
[WhiteClock "0:00:00"]
[BlackClock "0:00:09"]

1. d4 {[%clk 0:03:00]}  d5 {[%clk 0:03:00]} 2. c4 {[%clk 0:03:01]}  e6 {[%clk 0:03:00]} 3. Nf3 {[%clk 0:02:53]}  c6 {[%clk 0:02:59]} 4. g3 {[%clk 0:02:52]}  dxc4 {[%clk 0:02:55]} 5. Bg2 {[%clk 0:02:52]}  Bb4+ {[%clk 0:02:55]} 6. Bd2 {[%clk 0:02:51]}  a5 {[%clk 0:02:56]} 7. Qc2 {[%clk 0:02:47]}  Bxd2+ {[%clk 0:02:54]} 8. Qxd2 {[%clk 0:02:44]}  b5 {[%clk 0:02:51]} 9. a4 {[%clk 0:02:42]}  Nf6 {[%clk 0:02:33]} 10. axb5 {[%clk 0:02:42]}  cxb5 {[%clk 0:02:34]} 11. Qg5 {[%clk 0:02:42]}  O-O {[%clk 0:02:34]} 12. Qxb5 {[%clk 0:02:42]}  Ba6 {[%clk 0:02:35]} 13. Qa4 {[%clk 0:02:43]}  Qb6 {[%clk 0:02:21]} 14. O-O {[%clk 0:02:26]}  Qxb2 {[%clk 0:02:11]} 15. Nbd2 {[%clk 0:02:26]}  Qb4 {[%clk 0:01:46]} 16. Ne5 {[%clk 0:01:55]}  Qxa4 {[%clk 0:01:31]} 17. Rxa4 {[%clk 0:01:54]}  Ra7 {[%clk 0:01:31]} 18. Rxa5 {[%clk 0:01:41]}  Rc7 {[%clk 0:01:19]} 19. Rc1 {[%clk 0:01:03]}  c3 {[%clk 0:01:18]} 20. Nb1 {[%clk 0:01:03]}  c2 {[%clk 0:01:09]} 21. Na3 {[%clk 0:01:03]}  Bxe2 {[%clk 0:01:03]} 22. Rxc2 {[%clk 0:01:01]}  Rxc2 {[%clk 0:01:00]} 23. Nxc2 {[%clk 0:01:02]}  Nbd7 {[%clk 0:00:59]} 24. Nc6 {[%clk 0:00:59]}  g6 {[%clk 0:00:54]} 25. N2b4 {[%clk 0:00:56]}  h5 {[%clk 0:00:49]} 26. f4 {[%clk 0:00:52]}  Kg7 {[%clk 0:00:46]} 27. Kf2 {[%clk 0:00:51]}  Bc4 {[%clk 0:00:44]} 28. h3 {[%clk 0:00:49]}  Nb6 {[%clk 0:00:41]} 29. Rc5 {[%clk 0:00:40]}  Rc8 {[%clk 0:00:40]} 30. Ne5 {[%clk 0:00:36]}  Bb3 {[%clk 0:00:29]} 31. Nbc6 {[%clk 0:00:33]}  Bd5 {[%clk 0:00:24]} 32. Rb5 {[%clk 0:00:26]}  Bxg2 {[%clk 0:00:21]} 33. Kxg2 {[%clk 0:00:22]}  Nbd5 {[%clk 0:00:18]} 34. Rb7 {[%clk 0:00:22]}  Rc7 {[%clk 0:00:18]} 35. Rb5 {[%clk 0:00:21]}  Nd7 {[%clk 0:00:18]} 36. Nxd7 {[%clk 0:00:16]}  Rxd7 {[%clk 0:00:19]} 37. Kf3 {[%clk 0:00:11]}  Rc7 {[%clk 0:00:19]} 38. Rc5 {[%clk 0:00:12]}  Ne7 {[%clk 0:00:14]} 39. Ne5 {[%clk 0:00:08]}  Ra7 {[%clk 0:00:13]} 40. Nd3 {[%clk 0:00:08]}  Nf5 {[%clk 0:00:12]} 41. d5 {[%clk 0:00:00]}  Ra3 {[%clk 0:00:09]} 0-1


[Site "https://www.chess.com"]